[Event "*** Titled Tuesday Blitz"]
[Site "Chess.com"]
[Date "2020.10.27"]
[Round "9"]
[White "PowerThinking2650"]
[Black "MVM2008"]
[Result "1-0"]
[WhiteElo "2386"]
[BlackElo "2234"]
[TimeControl "180+1"]
[EndTime "11:45:23 PDT"]
[Termination "PowerThinking2650 won on time"]

1. e4 {[%clk 0:03:00.9]} 1... e5 {[%clk 0:02:58.3]} 2. Nf3 {[%clk 0:02:59.9]}
2... Nc6 {[%clk 0:02:57.2]} 3. Nc3 {[%clk 0:02:59.9]} 3... Nf6 {[%clk
0:02:54.9]} 4. d4 {[%clk 0:02:59.8]} 4... exd4 {[%clk 0:02:52.5]} 5. Nxd4 {[%clk
0:03:00.7]} 5... g6 {[%clk 0:02:44.7]} 6. Nxc6 {[%clk 0:02:54.8]} 6... bxc6
{[%clk 0:02:44.5]} 7. e5 {[%clk 0:02:54.2]} 7... Qe7 {[%clk 0:02:26.5]} 8. Qe2
{[%clk 0:02:43.4]} 8... Nd5 {[%clk 0:02:26.2]} 9. Ne4 {[%clk 0:02:42.4]} 9...
Bg7 {[%clk 0:02:21]} 10. c4 {[%clk 0:02:22.5]} 10... Ba6 {[%clk 0:02:03.2]} 11.
Bg5 {[%clk 0:02:00.2]} 11... Qxe5 {[%clk 0:01:46.8]} 12. Nf6+ {[%clk 0:01:52.3]}
12... Bxf6 {[%clk 0:01:46.7]} 13. Qxe5+ {[%clk 0:01:49.3]} 13... Bxe5 {[%clk
0:01:46.5]} 14. cxd5 {[%clk 0:01:43.8]} 14... Bxf1 {[%clk 0:01:34.6]} 15. Kxf1
{[%clk 0:01:41.2]} 15... cxd5 {[%clk 0:01:29.3]} 16. Re1 {[%clk 0:01:38.9]}
16... O-O {[%clk 0:01:02.1]} 17. Rxe5 {[%clk 0:01:32.3]} 17... f6 {[%clk
0:00:59.9]} 18. Rxd5 {[%clk 0:01:24.4]} 18... fxg5 {[%clk 0:00:59.8]} 19. Rxd7
{[%clk 0:01:24.3]} 19... c5 {[%clk 0:00:37.3]} 20. g3 {[%clk 0:01:11.6]} 20...
Rab8 {[%clk 0:00:30.6]} 21. b3 {[%clk 0:01:10]} 21... c4 {[%clk 0:00:30.3]} 22.
bxc4 {[%clk 0:01:05.7]} 22... Rb2 {[%clk 0:00:29]} 23. Kg2 {[%clk 0:00:55.6]}
23... Rfxf2+ {[%clk 0:00:22.8]} 24. Kh3 {[%clk 0:00:55.5]} 24... Rxa2 {[%clk
0:00:15.7]} 25. Rb1 {[%clk 0:00:47.1]} 25... Rxh2+ {[%clk 0:00:11.5]} 26. Kg4
{[%clk 0:00:47.5]} 26... Rhb2 {[%clk 0:00:06.8]} 27. Rbd1 {[%clk 0:00:29.9]}
27... Rb8 {[%clk 0:00:05.2]} 28. Kxg5 {[%clk 0:00:27.7]} 28... Ra5+ {[%clk
0:00:03.5]} 29. R1d5 {[%clk 0:00:21.3]} 29... Rxd5+ {[%clk 0:00:02.9]} 30. cxd5
{[%clk 0:00:20.7]} 30... a5 {[%clk 0:00:03]} 31. Ra7 {[%clk 0:00:19.5]} 1-0

[Event "*** Titled Tuesday Blitz"]
[Site "Chess.com"]
[Date "2020.10.27"]
[Round "9"]
[White "RobertoJBM"]
[Black "FloMaster111"]
[Result "1-0"]
[WhiteElo "2794"]
[BlackElo "2626"]
[TimeControl "180+1"]
[EndTime "11:45:24 PDT"]
[Termination "RobertoJBM won by resignation"]

1. d4 {[%clk 0:02:43.5]} 1... d5 {[%clk 0:02:59.8]} 2. c4 {[%clk 0:02:41.8]}
2... e6 {[%clk 0:02:59.6]} 3. Nc3 {[%clk 0:02:40.8]} 3... Nf6 {[%clk 0:02:59.6]}
4. cxd5 {[%clk 0:02:40.3]} 4... exd5 {[%clk 0:02:58.8]} 5. Bg5 {[%clk
0:02:39.6]} 5... c6 {[%clk 0:02:58.1]} 6. e3 {[%clk 0:02:38.9]} 6... Bd6 {[%clk
0:02:58.3]} 7. Bd3 {[%clk 0:02:37.6]} 7... O-O {[%clk 0:02:56.6]} 8. Qc2 {[%clk
0:02:36.9]} 8... h6 {[%clk 0:02:55.3]} 9. Bh4 {[%clk 0:02:37.3]} 9... a5 {[%clk
0:02:55.3]} 10. Nge2 {[%clk 0:02:35]} 10... Na6 {[%clk 0:02:55.3]} 11. a3 {[%clk
0:02:35.1]} 11... Re8 {[%clk 0:02:55.7]} 12. Bg3 {[%clk 0:02:34.4]} 12... Nc7
{[%clk 0:02:52.5]} 13. O-O {[%clk 0:02:32]} 13... Ne6 {[%clk 0:02:51.3]} 14.
Rab1 {[%clk 0:02:30.5]} 14... Bxg3 {[%clk 0:02:08.5]} 15. Nxg3 {[%clk
0:02:28.6]} 15... c5 {[%clk 0:02:09.1]} 16. dxc5 {[%clk 0:02:27.5]} 16... Nxc5
{[%clk 0:02:09.3]} 17. Nge2 {[%clk 0:02:26.3]} 17... Nxd3 {[%clk 0:02:07.9]} 18.
Qxd3 {[%clk 0:02:26]} 18... Be6 {[%clk 0:02:02.1]} 19. Nd4 {[%clk 0:02:22.4]}
19... Qb6 {[%clk 0:01:57.4]} 20. Qb5 {[%clk 0:02:20.8]} 20... Qxb5 {[%clk
0:01:53.6]} 21. Ncxb5 {[%clk 0:02:21.7]} 21... Rec8 {[%clk 0:01:48.3]} 22. Rbc1
{[%clk 0:02:20.9]} 22... Ne8 {[%clk 0:01:42.8]} 23. Rfd1 {[%clk 0:02:16.6]}
23... Kf8 {[%clk 0:01:41.7]} 24. f3 {[%clk 0:02:12]} 24... Ke7 {[%clk
0:01:41.4]} 25. Kf2 {[%clk 0:02:11.7]} 25... Rxc1 {[%clk 0:01:31.8]} 26. Rxc1
{[%clk 0:02:11.7]} 26... Kd7 {[%clk 0:01:32.4]} 27. Ke2 {[%clk 0:02:07.5]} 27...
Rc8 {[%clk 0:01:04]} 28. Rxc8 {[%clk 0:02:06.2]} 28... Kxc8 {[%clk 0:01:04.9]}
29. f4 {[%clk 0:02:02.4]} 29... b6 {[%clk 0:00:56.7]} 30. f5 {[%clk 0:01:57.9]}
30... Bd7 {[%clk 0:00:56.9]} 31. Nc3 {[%clk 0:01:57.6]} 31... Nf6 {[%clk
0:00:53.4]} 32. h3 {[%clk 0:01:54.5]} 32... h5 {[%clk 0:00:53.1]} 33. g3 {[%clk
0:01:52.4]} 33... Kc7 {[%clk 0:00:52.5]} 34. Kf3 {[%clk 0:01:52]} 34... g6
{[%clk 0:00:50.3]} 35. Kf4 {[%clk 0:01:44.6]} 35... gxf5 {[%clk 0:00:18.9]} 36.
Ke5 {[%clk 0:01:41.9]} 36... Ne8 {[%clk 0:00:11.4]} 37. Nxd5+ {[%clk 0:01:40.4]}
37... Kb7 {[%clk 0:00:12.1]} 38. Nxf5 {[%clk 0:01:28.9]} 38... Be6 {[%clk
0:00:11.2]} 39. e4 {[%clk 0:01:20.3]} 39... Kc6 {[%clk 0:00:10.3]} 40. Nd4+
{[%clk 0:01:18.1]} 40... Kc5 {[%clk 0:00:09.1]} 41. b4+ {[%clk 0:01:09.9]} 41...
axb4 {[%clk 0:00:08.8]} 42. axb4+ {[%clk 0:01:10.8]} 42... Kc4 {[%clk
0:00:08.6]} 43. Nxb6+ {[%clk 0:01:10.9]} 43... Kxb4 {[%clk 0:00:09.2]} 44. Nxe6
{[%clk 0:01:11.5]} 44... fxe6 {[%clk 0:00:09.6]} 45. Kxe6 {[%clk 0:01:12.4]}
45... Kc5 {[%clk 0:00:10.2]} 46. Nd7+ {[%clk 0:01:10.7]} 46... Kd4 {[%clk
0:00:10.2]} 47. e5 {[%clk 0:01:11]} 47... Nc7+ {[%clk 0:00:09]} 48. Kf5 {[%clk
0:01:09.5]} 48... Kd5 {[%clk 0:00:07.8]} 49. Nf6+ {[%clk 0:01:08.9]} 49... Kd4
{[%clk 0:00:07.9]} 50. Nxh5 {[%clk 0:01:09.8]} 50... Nd5 {[%clk 0:00:07.9]} 51.
Nf4 {[%clk 0:01:09.3]} 51... Ne3+ {[%clk 0:00:07.7]} 52. Kf6 {[%clk 0:01:08.8]}
52... Nf1 {[%clk 0:00:07.7]} 53. e6 {[%clk 0:01:05.3]} 1-0

[Event "*** Titled Tuesday Blitz"]
[Site "Chess.com"]
[Date "2020.10.27"]
[Round "9"]
[White "Chernobay_Artem"]
[Black "Shahinyan_ChessMood"]
[Result "1-0"]
[WhiteElo "2627"]
[BlackElo "2748"]
[TimeControl "180+1"]
[EndTime "11:45:25 PDT"]
[Termination "Chernobay_Artem won by resignation"]

1. d4 {[%clk 0:03:00.9]} 1... Nf6 {[%clk 0:02:54.4]} 2. c4 {[%clk 0:03:01.1]}
2... c5 {[%clk 0:02:54.5]} 3. d5 {[%clk 0:03:01]} 3... g6 {[%clk 0:02:55]} 4.
Nc3 {[%clk 0:03:00.6]} 4... Bg7 {[%clk 0:02:55.7]} 5. e4 {[%clk 0:03:01]} 5...
d6 {[%clk 0:02:56.3]} 6. Nf3 {[%clk 0:02:57.8]} 6... O-O {[%clk 0:02:56.6]} 7.
h3 {[%clk 0:02:46.5]} 7... e6 {[%clk 0:02:56.7]} 8. Bd3 {[%clk 0:02:41.1]} 8...
exd5 {[%clk 0:02:55.7]} 9. cxd5 {[%clk 0:02:42]} 9... b5 {[%clk 0:02:54.2]} 10.
Nxb5 {[%clk 0:02:13.1]} 10... Nxe4 {[%clk 0:02:53.6]} 11. O-O {[%clk 0:02:12.8]}
11... Ba6 {[%clk 0:02:30.5]} 12. a4 {[%clk 0:02:05.5]} 12... Bxb5 {[%clk
0:02:15.5]} 13. axb5 {[%clk 0:02:02.7]} 13... Nf6 {[%clk 0:02:15.6]} 14. Bc4
{[%clk 0:01:58.1]} 14... Nbd7 {[%clk 0:02:14.6]} 15. Ra6 {[%clk 0:01:57.5]}
15... Nb6 {[%clk 0:02:14.3]} 16. b3 {[%clk 0:01:57.5]} 16... Re8 {[%clk
0:01:57]} 17. Qd3 {[%clk 0:01:48]} 17... Qd7 {[%clk 0:01:47.9]} 18. Bf4 {[%clk
0:01:40.2]} 18... Re4 {[%clk 0:01:23]} 19. Bg5 {[%clk 0:01:36.7]} 19... Rae8
{[%clk 0:01:22]} 20. Rfa1 {[%clk 0:01:35.5]} 20... Nfxd5 {[%clk 0:01:18.6]} 21.
Bxd5 {[%clk 0:01:12.5]} 21... Nxd5 {[%clk 0:01:17.1]} 22. Qxd5 {[%clk
0:01:05.6]} 22... Bxa1 {[%clk 0:01:16.9]} 23. Rxa1 {[%clk 0:01:05.4]} 23... Qxb5
{[%clk 0:01:17.4]} 24. Rxa7 {[%clk 0:01:02.7]} 24... R4e6 {[%clk 0:01:11.5]} 25.
Bh6 {[%clk 0:00:44.7]} 25... Qb6 {[%clk 0:00:35]} 26. Rb7 {[%clk 0:00:41.2]}
26... Qa5 {[%clk 0:00:34.5]} 27. Kh2 {[%clk 0:00:36.8]} 27... R6e7 {[%clk
0:00:23.4]} 28. Qc6 {[%clk 0:00:24.1]} 28... Qa8 {[%clk 0:00:13.1]} 29. Qxd6
{[%clk 0:00:18.5]} 29... Qxb7 {[%clk 0:00:12.4]} 30. Qf6 {[%clk 0:00:18.3]}
30... Qc7+ {[%clk 0:00:02.5]} 31. g3 {[%clk 0:00:15.7]} 1-0

[Event "*** Titled Tuesday Blitz"]
[Site "Chess.com"]
[Date "2020.10.27"]
[Round "9"]
[White "ShcufNaiRolf"]
[Black "winniethepooh04"]
[Result "0-1"]
[WhiteElo "2316"]
[BlackElo "2231"]
[TimeControl "180+1"]
[EndTime "11:45:25 PDT"]
[Termination "winniethepooh04 won on time"]

1. e4 {[%clk 0:03:00.9]} 1... c5 {[%clk 0:02:59.3]} 2. Nf3 {[%clk 0:02:59.9]}
2... d6 {[%clk 0:02:59.7]} 3. d4 {[%clk 0:02:55.6]} 3... cxd4 {[%clk 0:03:00.1]}
4. Nxd4 {[%clk 0:02:56.1]} 4... Nf6 {[%clk 0:02:59.7]} 5. Nc3 {[%clk 0:02:56.2]}
5... a6 {[%clk 0:02:59.2]} 6. h4 {[%clk 0:02:54.9]} 6... Nc6 {[%clk 0:02:55.7]}
7. Be3 {[%clk 0:02:39.5]} 7... Ng4 {[%clk 0:02:52.2]} 8. Nxc6 {[%clk 0:02:38.3]}
8... bxc6 {[%clk 0:02:27.5]} 9. Bf4 {[%clk 0:02:37.2]} 9... Qb6 {[%clk
0:02:22.2]} 10. Qd2 {[%clk 0:02:36.8]} 10... g6 {[%clk 0:02:15.6]} 11. Na4
{[%clk 0:02:16.9]} 11... Qa7 {[%clk 0:02:03.1]} 12. f3 {[%clk 0:02:02.1]} 12...
Ne5 {[%clk 0:01:56.1]} 13. h5 {[%clk 0:01:44.2]} 13... Bg7 {[%clk 0:01:52.8]}
14. hxg6 {[%clk 0:01:41]} 14... Nxg6 {[%clk 0:01:51]} 15. Be3 {[%clk 0:01:26.4]}
15... c5 {[%clk 0:01:46]} 16. Bh6 {[%clk 0:01:10.8]} 16... Be5 {[%clk
0:01:39.5]} 17. f4 {[%clk 0:01:01.6]} 17... Bf6 {[%clk 0:01:39.3]} 18. O-O-O
{[%clk 0:00:53.6]} 18... Rb8 {[%clk 0:01:33.2]} 19. e5 {[%clk 0:00:45.5]} 19...
Nxe5 {[%clk 0:01:02.9]} 20. fxe5 {[%clk 0:00:44.9]} 20... Bxe5 {[%clk
0:01:03.8]} 21. Bc4 {[%clk 0:00:26]} 21... Rb4 {[%clk 0:00:59.2]} 22. b3 {[%clk
0:00:09.3]} 22... Qb8 {[%clk 0:00:50.3]} 23. Qd3 {[%clk 0:00:06]} 23... Rxa4
{[%clk 0:00:26.7]} 24. bxa4 {[%clk 0:00:06.9]} 24... Qb2+ {[%clk 0:00:26.6]} 25.
Kd2 {[%clk 0:00:06.8]} 25... Qb4+ {[%clk 0:00:24.1]} 26. Ke2 {[%clk 0:00:04.1]}
26... Bg4+ {[%clk 0:00:24.4]} 27. Kf2 {[%clk 0:00:04.6]} 27... Bd4+ {[%clk
0:00:23.1]} 28. Kg3 {[%clk 0:00:04.9]} 28... Be5+ {[%clk 0:00:22.1]} 29. Kxg4
{[%clk 0:00:04.2]} 29... Rg8+ {[%clk 0:00:22]} 30. Kh5 {[%clk 0:00:04.2]} 30...
Rg3 {[%clk 0:00:14.3]} 31. Qxh7 {[%clk 0:00:01.4]} 31... Qxc4 {[%clk 0:00:13.9]}
0-1

[Event "*** Titled Tuesday Blitz"]
[Site "Chess.com"]
[Date "2020.10.27"]
[Round "9"]
[White "BilodeauA"]
[Black "exoticprincess"]
[Result "1-0"]
[WhiteElo "2923"]
[BlackElo "2869"]
[TimeControl "180+1"]
[EndTime "11:45:27 PDT"]
[Termination "BilodeauA won by checkmate"]

1. e4 {[%clk 0:03:00.9]} 1... c6 {[%clk 0:02:58.7]} 2. Nf3 {[%clk 0:03:00.5]}
2... d5 {[%clk 0:02:58.7]} 3. d3 {[%clk 0:03:01.2]} 3... Bg4 {[%clk 0:02:57.4]}
4. h3 {[%clk 0:02:58.9]} 4... Bxf3 {[%clk 0:02:56.8]} 5. Qxf3 {[%clk 0:02:58.9]}
5... e6 {[%clk 0:02:57.5]} 6. Nd2 {[%clk 0:02:53.1]} 6... Nd7 {[%clk 0:02:54.5]}
7. g3 {[%clk 0:02:53]} 7... g6 {[%clk 0:02:54.1]} 8. Bg2 {[%clk 0:02:53.3]} 8...
Bg7 {[%clk 0:02:54.8]} 9. O-O {[%clk 0:02:53.2]} 9... Ne7 {[%clk 0:02:54.6]} 10.
c3 {[%clk 0:02:52.4]} 10... O-O {[%clk 0:02:54]} 11. d4 {[%clk 0:02:53.1]} 11...
dxe4 {[%clk 0:02:49.8]} 12. Nxe4 {[%clk 0:02:53.3]} 12... Nd5 {[%clk 0:02:48]}
13. h4 {[%clk 0:02:53]} 13... N7f6 {[%clk 0:02:34.8]} 14. Bg5 {[%clk 0:02:44.7]}
14... h6 {[%clk 0:02:33.5]} 15. Bd2 {[%clk 0:02:40.8]} 15... Nxe4 {[%clk
0:02:33]} 16. Qxe4 {[%clk 0:02:41.2]} 16... h5 {[%clk 0:02:30.7]} 17. Rad1
{[%clk 0:02:40.4]} 17... a5 {[%clk 0:02:28.7]} 18. c4 {[%clk 0:02:13.3]} 18...
Nf6 {[%clk 0:02:13.7]} 19. Qd3 {[%clk 0:02:13.1]} 19... Qb6 {[%clk 0:02:05.7]}
20. Bc3 {[%clk 0:02:13.2]} 20... Rfd8 {[%clk 0:02:05.4]} 21. Rd2 {[%clk
0:01:58.7]} 21... Bh6 {[%clk 0:02:00.3]} 22. Re2 {[%clk 0:01:53.8]} 22... Bg7
{[%clk 0:02:00.8]} 23. Rd1 {[%clk 0:01:54]} 23... Ng4 {[%clk 0:01:59.1]} 24. Bf3
{[%clk 0:01:40.2]} 24... Ne5 {[%clk 0:01:51.5]} 25. Qe4 {[%clk 0:01:07.3]} 25...
Nxc4 {[%clk 0:01:47.4]} 26. g4 {[%clk 0:01:02.7]} 26... Nd6 {[%clk 0:01:43.7]}
27. Qf4 {[%clk 0:01:02.6]} 27... hxg4 {[%clk 0:01:43.4]} 28. Bxg4 {[%clk
0:01:03.2]} 28... Qb5 {[%clk 0:01:35.1]} 29. d5 {[%clk 0:00:59.1]} 29... cxd5
{[%clk 0:01:21.2]} 30. h5 {[%clk 0:00:53.1]} 30... gxh5 {[%clk 0:00:55.7]} 31.
Bxg7 {[%clk 0:00:50.3]} 31... Kxg7 {[%clk 0:00:54.9]} 32. Qg5+ {[%clk
0:00:50.6]} 32... Kf8 {[%clk 0:00:51.4]} 33. Bxh5 {[%clk 0:00:48.4]} 33... Qa4
{[%clk 0:00:31]} 34. b3 {[%clk 0:00:42.4]} 34... Qb4 {[%clk 0:00:28.8]} 35. Qf6
{[%clk 0:00:28.3]} 35... Rd7 {[%clk 0:00:27.8]} 36. Rxe6 {[%clk 0:00:26.7]}
36... Kg8 {[%clk 0:00:25.5]} 37. Qg5+ {[%clk 0:00:26.8]} 37... Kf8 {[%clk
0:00:25.1]} 38. Rh6 {[%clk 0:00:23.1]} 38... Qc3 {[%clk 0:00:25.1]} 39. Rxd5
{[%clk 0:00:20.7]} 39... Rad8 {[%clk 0:00:22.9]} 40. Rf6 {[%clk 0:00:19.1]}
40... Ne4 {[%clk 0:00:20.8]} 41. Rxf7+ {[%clk 0:00:18.3]} 41... Ke8 {[%clk
0:00:18.5]} 42. Qg8# {[%clk 0:00:18.4]} 1-0

[Event "*** Titled Tuesday Blitz"]
[Site "Chess.com"]
[Date "2020.10.27"]
[Round "9"]
[White "XDPS"]
[Black "Borsuk_Konstantin"]
[Result "0-1"]
[WhiteElo "2727"]
[BlackElo "2584"]
[TimeControl "180+1"]
[EndTime "11:45:29 PDT"]
[Termination "Borsuk_Konstantin won on time"]

1. d4 {[%clk 0:03:00.9]} 1... Nf6 {[%clk 0:02:59.6]} 2. Bf4 {[%clk 0:03:01.3]}
2... b6 {[%clk 0:02:59.2]} 3. h3 {[%clk 0:02:59.8]} 3... Bb7 {[%clk 0:02:59.5]}
4. e3 {[%clk 0:03:00.3]} 4... d6 {[%clk 0:02:58.9]} 5. Nf3 {[%clk 0:03:00.8]}
5... Nbd7 {[%clk 0:02:57.7]} 6. Bh2 {[%clk 0:02:58.4]} 6... e6 {[%clk
0:02:53.4]} 7. Bd3 {[%clk 0:02:54]} 7... a6 {[%clk 0:02:51.5]} 8. c4 {[%clk
0:02:53.6]} 8... Qe7 {[%clk 0:02:47.2]} 9. Nc3 {[%clk 0:02:52.9]} 9... e5 {[%clk
0:02:47.4]} 10. Bc2 {[%clk 0:02:49.6]} 10... g6 {[%clk 0:02:35.7]} 11. O-O
{[%clk 0:02:46.9]} 11... Bg7 {[%clk 0:02:34.6]} 12. Re1 {[%clk 0:02:42.6]} 12...
e4 {[%clk 0:02:31.8]} 13. Nd2 {[%clk 0:02:41.7]} 13... O-O {[%clk 0:02:31.8]}
14. b4 {[%clk 0:02:37.5]} 14... c5 {[%clk 0:02:22.2]} 15. bxc5 {[%clk
0:02:36.1]} 15... dxc5 {[%clk 0:02:21.7]} 16. Nb3 {[%clk 0:02:34]} 16... Rac8
{[%clk 0:02:10.3]} 17. dxc5 {[%clk 0:02:33]} 17... Nxc5 {[%clk 0:02:07.5]} 18.
Bd6 {[%clk 0:02:31.5]} 18... Qe6 {[%clk 0:02:05.7]} 19. Nxc5 {[%clk 0:02:27.7]}
19... bxc5 {[%clk 0:02:03.4]} 20. Bxf8 {[%clk 0:02:26.6]} 20... Rxf8 {[%clk
0:01:54.7]} 21. Bb3 {[%clk 0:01:58.7]} 21... Nd7 {[%clk 0:01:42.2]} 22. Qc2
{[%clk 0:01:41.6]} 22... f5 {[%clk 0:01:10.6]} 23. Rad1 {[%clk 0:01:38.5]} 23...
Ne5 {[%clk 0:01:09.1]} 24. Nd5 {[%clk 0:01:38.6]} 24... g5 {[%clk 0:01:02.4]}
25. Rd2 {[%clk 0:01:15.8]} 25... Kh8 {[%clk 0:00:52.8]} 26. Red1 {[%clk
0:01:14]} 26... Qh6 {[%clk 0:00:23.4]} 27. Nc3 {[%clk 0:00:28.4]} 27... Nf3+
{[%clk 0:00:12.9]} 28. Kf1 {[%clk 0:00:11.9]} 28... Nxd2+ {[%clk 0:00:12.2]} 29.
Qxd2 {[%clk 0:00:12]} 29... g4 {[%clk 0:00:11.9]} 30. Kg1 {[%clk 0:00:03.3]}
30... gxh3 {[%clk 0:00:11.7]} 31. g3 {[%clk 0:00:03.7]} 31... f4 {[%clk
0:00:11.7]} 32. exf4 {[%clk 0:00:02.8]} 32... h2+ {[%clk 0:00:11.2]} 0-1

[Event "*** Titled Tuesday Blitz"]
[Site "Chess.com"]
[Date "2020.10.27"]
[Round "9"]
[White "TurboSteen"]
[Black "Mbneu"]
[Result "0-1"]
[WhiteElo "2038"]
[BlackElo "2192"]
[TimeControl "180+1"]
[EndTime "11:45:29 PDT"]
[Termination "Mbneu won by resignation"]

1. e4 {[%clk 0:03:00.9]} 1... c5 {[%clk 0:02:57.5]} 2. Nc3 {[%clk 0:02:51.8]}
2... a6 {[%clk 0:02:56.2]} 3. Nge2 {[%clk 0:02:44.4]} 3... b5 {[%clk 0:02:54.8]}
4. g3 {[%clk 0:02:41.1]} 4... Bb7 {[%clk 0:02:50.6]} 5. Bg2 {[%clk 0:02:39.6]}
5... e6 {[%clk 0:02:50.6]} 6. O-O {[%clk 0:02:37]} 6... h5 {[%clk 0:02:50.6]} 7.
d4 {[%clk 0:02:34.5]} 7... h4 {[%clk 0:02:44.6]} 8. d5 {[%clk 0:02:27]} 8... b4
{[%clk 0:02:43.5]} 9. Na4 {[%clk 0:02:22.9]} 9... d6 {[%clk 0:02:17.2]} 10. c3
{[%clk 0:02:17.6]} 10... bxc3 {[%clk 0:02:11.2]} 11. Naxc3 {[%clk 0:02:14.3]}
11... e5 {[%clk 0:02:11.1]} 12. f4 {[%clk 0:02:11.5]} 12... Nd7 {[%clk
0:02:08.2]} 13. Qa4 {[%clk 0:02:00.8]} 13... hxg3 {[%clk 0:02:05.8]} 14. Nxg3
{[%clk 0:01:55.9]} 14... Qh4 {[%clk 0:02:00.4]} 15. Nf5 {[%clk 0:01:52.7]} 15...
Qxh2+ {[%clk 0:01:57.6]} 16. Kf2 {[%clk 0:01:50.7]} 16... g6 {[%clk 0:01:51.2]}
17. Rh1 {[%clk 0:01:46.7]} 17... Qxh1 {[%clk 0:01:49.3]} 18. Bxh1 {[%clk
0:01:44]} 18... Rxh1 {[%clk 0:01:49.8]} 19. fxe5 {[%clk 0:01:35.5]} 19... gxf5
{[%clk 0:01:33]} 20. e6 {[%clk 0:01:33.3]} 20... fxe6 {[%clk 0:01:27]} 21. dxe6
{[%clk 0:01:31.5]} 21... O-O-O {[%clk 0:01:23.6]} 22. exd7+ {[%clk 0:01:30]}
22... Rxd7 {[%clk 0:01:21.7]} 23. Rb1 {[%clk 0:01:22.1]} 23... fxe4 {[%clk
0:01:17.2]} 24. Be3 {[%clk 0:01:09.3]} 24... Rh2+ {[%clk 0:01:04.3]} 25. Kg3
{[%clk 0:01:05.2]} 25... Rhh7 {[%clk 0:00:58.1]} 26. Nxe4 {[%clk 0:01:01]} 26...
Rdg7+ {[%clk 0:00:53]} 27. Kf2 {[%clk 0:00:57.1]} 27... Rh2+ {[%clk 0:00:51.4]}
28. Ke1 {[%clk 0:00:53.6]} 28... Rh1+ {[%clk 0:00:48]} 29. Kd2 {[%clk
0:00:51.6]} 29... Rxb1 {[%clk 0:00:46.2]} 30. Qe8+ {[%clk 0:00:48.8]} 30... Kc7
{[%clk 0:00:45.4]} 31. Qxf8 {[%clk 0:00:46.7]} 31... Rg2+ {[%clk 0:00:44.3]} 32.
Nf2 {[%clk 0:00:41.1]} 32... Rxb2+ {[%clk 0:00:42.5]} 33. Kc3 {[%clk 0:00:39.8]}
33... Rxa2 {[%clk 0:00:41.3]} 34. Qf7+ {[%clk 0:00:36.3]} 34... Kb6 {[%clk
0:00:40.7]} 35. Qb3+ {[%clk 0:00:33.3]} 35... Ka7 {[%clk 0:00:37.6]} 36. Qe6
{[%clk 0:00:25.6]} 36... Ra3+ {[%clk 0:00:35.3]} 37. Kd2 {[%clk 0:00:23]} 37...
Rxe3 {[%clk 0:00:25]} 38. Qxe3 {[%clk 0:00:15.2]} 38... Nf6 {[%clk 0:00:24.1]}
39. Kc3 {[%clk 0:00:12.7]} 39... Rxf2 {[%clk 0:00:22.5]} 40. Qxf2 {[%clk
0:00:11.5]} 40... Ne4+ {[%clk 0:00:21.9]} 0-1

[Event "*** Titled Tuesday Blitz"]
[Site "Chess.com"]
[Date "2020.10.27"]
[Round "9"]
[White "KaterynaLagno"]
[Black "Neftegor"]
[Result "1-0"]
[WhiteElo "2671"]
[BlackElo "2458"]
[TimeControl "180+1"]
[EndTime "11:45:32 PDT"]
[Termination "KaterynaLagno won by resignation"]

1. e4 {[%clk 0:03:00.9]} 1... c6 {[%clk 0:02:59.6]} 2. Nc3 {[%clk 0:03:00.4]}
2... d5 {[%clk 0:03:00.5]} 3. Nf3 {[%clk 0:03:00.1]} 3... Bg4 {[%clk 0:02:59.2]}
4. h3 {[%clk 0:03:00]} 4... Bxf3 {[%clk 0:02:59.6]} 5. Qxf3 {[%clk 0:03:00.9]}
5... e6 {[%clk 0:03:00]} 6. Be2 {[%clk 0:02:58.6]} 6... Nf6 {[%clk 0:02:59.9]}
7. O-O {[%clk 0:02:59.2]} 7... Nbd7 {[%clk 0:02:54.8]} 8. d4 {[%clk 0:02:58]}
8... dxe4 {[%clk 0:02:51.9]} 9. Nxe4 {[%clk 0:02:58.9]} 9... Nxe4 {[%clk
0:02:52.5]} 10. Qxe4 {[%clk 0:02:59.8]} 10... Nf6 {[%clk 0:02:53.2]} 11. Qd3
{[%clk 0:02:59.6]} 11... Qc7 {[%clk 0:02:50.8]} 12. Bf3 {[%clk 0:02:59.7]} 12...
h6 {[%clk 0:02:44.8]} 13. c3 {[%clk 0:02:57.5]} 13... Bd6 {[%clk 0:02:43]} 14.
Qe2 {[%clk 0:02:53.4]} 14... O-O-O {[%clk 0:02:39]} 15. b4 {[%clk 0:02:46.2]}
15... g5 {[%clk 0:02:37.7]} 16. b5 {[%clk 0:02:44.5]} 16... c5 {[%clk
0:01:52.4]} 17. Be3 {[%clk 0:02:43.5]} 17... Nd5 {[%clk 0:01:42.4]} 18. dxc5
{[%clk 0:02:37.9]} 18... Bxc5 {[%clk 0:01:27.6]} 19. Bxc5 {[%clk 0:02:36]} 19...
Qxc5 {[%clk 0:01:28.5]} 20. c4 {[%clk 0:02:36.4]} 20... Nf4 {[%clk 0:01:15.8]}
21. Qe4 {[%clk 0:02:35.7]} 21... Rd7 {[%clk 0:01:16]} 22. Rfd1 {[%clk
0:02:32.1]} 22... Rhd8 {[%clk 0:01:14.7]} 23. Rxd7 {[%clk 0:02:28.9]} 23... Rxd7
{[%clk 0:01:15.6]} 24. Qh7 {[%clk 0:02:22.4]} 24... Qe5 {[%clk 0:01:09.3]} 25.
Rf1 {[%clk 0:02:20.2]} 25... Qf6 {[%clk 0:01:03.2]} 26. c5 {[%clk 0:02:02.2]}
26... Nxh3+ {[%clk 0:00:46.9]} 27. Kh1 {[%clk 0:02:02.3]} 27... g4 {[%clk
0:00:27.4]} 28. Qg8+ {[%clk 0:01:57.8]} 28... Rd8 {[%clk 0:00:26.5]} 29. Qxg4
{[%clk 0:01:58.7]} 29... Ng5 {[%clk 0:00:25.5]} 30. Be2 {[%clk 0:01:50.6]} 30...
h5 {[%clk 0:00:25]} 31. Qh4 {[%clk 0:01:46.2]} 31... Qf5 {[%clk 0:00:19.9]} 32.
c6 {[%clk 0:01:44]} 32... bxc6 {[%clk 0:00:19]} 33. bxc6 {[%clk 0:01:44.1]}
33... Ne4 {[%clk 0:00:18.6]} 34. Bf3 {[%clk 0:01:39.1]} 34... Nd2 {[%clk
0:00:17.4]} 35. c7 {[%clk 0:01:37.9]} 35... Rd7 {[%clk 0:00:12.7]} 36. Bc6
{[%clk 0:01:34.5]} 36... Rxc7 {[%clk 0:00:11.8]} 37. Rc1 {[%clk 0:01:18.7]}
37... Qg4 {[%clk 0:00:08.3]} 38. Qf6 {[%clk 0:01:14.5]} 38... Qg8 {[%clk
0:00:05.9]} 39. Qb2 {[%clk 0:00:54.8]} 39... Qd8 {[%clk 0:00:05.2]} 40. Bb7+
{[%clk 0:00:43.2]} 40... Kb8 {[%clk 0:00:05.4]} 41. Ba6+ {[%clk 0:00:42.1]}
41... Ka8 {[%clk 0:00:04.7]} 42. Rxc7 {[%clk 0:00:42]} 42... Qh4+ {[%clk
0:00:01.2]} 43. Kg1 {[%clk 0:00:41.7]} 43... Nf3+ {[%clk 0:00:01.4]} 44. gxf3
{[%clk 0:00:40.6]} 44... Qg5+ {[%clk 0:00:01.9]} 45. Kf1 {[%clk 0:00:41]} 1-0